Cogmind - Beta 13 @@@ ROGUE MODE // 2024.04.14 @ 20:58:49 Player: Skysub Result: Destroyed by G-73 Enforcer with Heavy Laser Performance ------------- Evolutions (8) 4000 Regions Visited (17) 3400 Robots Destroyed (83) 415 Value Destroyed (3981) 3981 Prototype IDs (14) 280 Alien Tech Used (0) 0 Bonus (5467) 5467 TOTAL SCORE: 17543 Bonus ------- High Alert Combat Kills 163 Follower Combat Kills 2163 Entered DSFs 500 Built Enhanced Grunts 300 A7 Reached Mainframe 300 Met R17 at Cetus 500 Met R17 at Research 2000 Friendly Fire -459 Cogmind --------- Core Integrity 0/1450 Matter 300/300 Energy 100/100 System Corruption 3% Temperature Cool (0) Movement Core (50) Location -2/Research Parts ------- > --- POWER (2) -------- (None) > --- PROPULSION (5) --- (None) > --- UTILITY (11) ----- Experimental Target Analyzer > --- WEAPON (5) ------- (None) > --- INVENTORY (5) ---- Light Quantum Reactor Powered Armor Powered Armor Powered Armor Phase Gun Peak State ------------ > --- POWER ------------ Light Particle Reactor Micro Antimatter Reactor > --- PROPULSION ------- Flexi-carbon Leg Flexi-carbon Leg Myomer Leg Myomer Leg Myomer Leg > --- UTILITY ---------- Advanced Heat Sink Active Sensor Suite Experimental Target Analyzer Core Analyzer Improved Transmission Jammer Centrium Medium Armor Plating Centrium Medium Armor Plating Advanced Hacking Suite Advanced Hacking Suite > --- WEAPON ----------- Tesla Rifle Gauss Rifle KE Penetrator Railgun Hypervelocity Railgun > --- INVENTORY -------- Point Defense Array High-powered Tractor Beam Fusion Bomb Launcher [Rating: 160] Favorites ----------- Power Quantum Reactor Engine Light Deuterium Engine Power Core Light Nuclear Core Reactor Quantum Reactor Propulsion Flexi-carbon Leg Leg Flexi-carbon Leg Wheel Wheel Hover Unit Aerolev Unit Flight Unit Xenon Bombardment Thruster Utility Centrium Medium Armor Plating Device Transmission Jammer Storage Small Storage Unit Processor Advanced Signal Interpreter Hackware System Shield Protection Centrium Medium Armor Plating Weapon Gauss Rifle Energy Gun Tesla Rifle Energy Cannon Plasma Cannon Ballistic Gun Gauss Rifle Ballistic Cannon Magnetic Acceleration Cannon Launcher Mini Grenade Launcher Special Weapon Mining Laser Special Melee Weapon Advanced Datajack Build | -11 -10 -9 -9 -8 -7 -7 -7 -7 -6 -6 -6 -6 -6 -5 -4 -3 -2 ------- Run | Yrd Mat Mat Sto Mat Fac Was Fac DSF Fac Ext Cet Arc Hub Fac Fac Res Res Slots Evolved 16 | . . 2 . 2 2 . . . 2 . . . . 2 2 2 2 Power 1 | . . . . . . . . . . . . . . . 1 . . Propulsion 3 | . . . . 1 . . . . 1 . . . . . . 1 . Utility 9 | . . 1 . 1 1 . . . 1 . . . . 2 1 1 1 Weapon 3 | . . 1 . . 1 . . . . . . . . . . . 1 Parts Attached 182 | 7 2 2 8 17 7 3 7 14 3 16 12 . 13 6 26 25 14 Power 18 | 1 . . 1 3 . . 2 1 . 1 1 . . . 4 3 1 Engine 7 | 1 . . 1 2 . . 2 1 . . . . . . . . . Core 3 | . . . . 1 . . . . . 1 . . . . 1 . . Reactor 8 | . . . . . . . . . . . 1 . . . 3 3 1 Propulsion 36 | 2 2 . . 4 4 . 2 3 1 5 . . 3 . 2 6 2 Treads . | . . . . . . . . . . . . . . . . . . Leg 32 | 2 2 . . 4 2 . . 3 1 5 . . 3 . 2 6 2 Wheel 1 | . . . . . . . 1 . . . . . . . . . . Hover 2 | . . . . . 2 . . . . . . . . . . . . Flight 1 | . . . . . . . 1 . . . . . . . . . . Utility 79 | 2 . 1 2 2 1 2 1 5 1 6 6 . 10 4 14 16 6 Device 44 | 1 . . . . . 1 1 1 . 4 4 . 7 4 9 8 4 Storage 3 | 1 . . . . . . . . . . . . 1 . . 1 . Processor 12 | . . 1 1 1 1 . . 1 1 1 . . . . 1 3 1 Hackware 5 | . . . 1 1 . 1 . . . . . . . . . 2 . Protection 15 | . . . . . . . . 3 . 1 2 . 2 . 4 2 1 Artifact . | . . . . . . . . . . . . . . . . . . Weapon 49 | 2 . 1 5 8 2 1 2 5 1 4 5 . . 2 6 . 5 Energy Gun 9 | 1 . . . 1 . . 1 . 1 1 . . . . 1 . 3 Energy Cannon 5 | . . . . 1 . 1 1 2 . . . . . . . . . Ballistic Gun 25 | 1 . 1 4 4 1 . . 3 . 2 2 . . 2 4 . 1 Ballistic Cannon 1 | . . . . . . . . . . 1 . . . . . . . Launcher 7 | . . . . 2 1 . . . . . 3 . . . . . 1 Special Weapon 1 | . . . 1 . . . . . . . . . . . . . . Impact Weapon . | . . . . . . . . . . . . . . . . . . Slashing Weapon . | . . . . . . . . . . . . . . . . . . Piercing Weapon . | . . . . . . . . . . . . . . . . . . Special Melee Weapon 1 | . . . . . . . . . . . . . . . 1 . . Unidentified Prototypes 12 | . . . . 2 1 1 . . . . 2 . 2 1 1 2 . Corrupted Parts 4 | . . . . . . . . . . 1 2 . . . 1 . . System Corruption 21 | . . . . . . . . . . 10 8 . . . 3 . . Parts Lost 70 | . . . 1 7 . 4 . 8 . 9 . . 3 1 4 4 29 Power 6 | . . . . . . 1 . 1 . 1 . . . . . 1 2 Propulsion 20 | . . . . 3 . 1 . 1 . 3 . . 2 . 1 2 7 Utility 26 | . . . 1 1 . 1 . 4 . 3 . . 1 . 1 1 13 Weapon 18 | . . . . 3 . 1 . 2 . 2 . . . 1 2 . 7 Highest Loss Streak 10 | . . . 1 4 . 4 . 4 . 8 . . 3 1 2 2 10 To Critical Strikes 1 | . . . . . . . . . . 1 . . . . . . . Average Slot Usage (%) 87 | . 100 100 94 93 91 74 70 86 87 87 100 100 93 88 85 87 63 Engine 3 | . 14 11 11 8 7 3 4 5 6 2 . . . . . . . Reactor 3 | . . . . . . . . . . . 5 6 6 5 5 6 4 Leg 20 | . 28 22 22 24 22 17 7 16 26 22 26 26 25 23 20 21 14 Device 12 | . 14 11 3 . . 3 5 5 6 12 13 13 13 25 23 17 10 Storage 2 | . 14 11 11 9 7 4 . . . . . . . . . . . Processor 9 | . . 11 11 18 23 16 15 11 6 7 13 13 7 . 4 8 8 Hackware 5 | . . . 3 7 7 9 15 11 6 6 6 6 . . . 4 7 Protection 5 | . . . . . . . . 3 13 8 6 6 12 8 7 6 4 Energy Gun 3 | . 14 11 1 . . . 7 3 1 9 . . . . 1 4 2 Energy Cannon 1 | . . . . 3 7 5 3 9 6 2 . . . . . . . Ballistic Gun 15 | . 14 22 29 18 12 7 . 10 13 5 19 26 26 23 18 14 8 Naked Turns . | . . . . . . . . . . . . . . . . . . Heaviest Build 85 | 14 14 17 22 27 27 28 19 43 47 49 51 49 59 61 85 75 83 Greatest Support 120 | 20 26 26 26 36 37 37 10 60 80 80 80 80 83 78 85 115 120 Greatest Overweight (x) 7 | 4 . . . 1 7 . 1 2 . 1 . . 1 . 1 1 2 Average Overweight (x) . | . . . . . . . . . . . . . . . . . . Largest Inventory Capacity 8 | 8 8 8 8 8 8 8 5 5 5 5 5 5 5 5 5 5 5 Average Capacity 5 | 7 8 8 8 8 8 6 5 5 5 5 5 5 5 5 5 5 5 Most Carried 8 | 1 8 7 8 8 8 8 5 5 4 5 5 5 5 5 5 5 5 Average Carried 4 | . 4 6 7 6 7 5 4 4 4 4 4 5 4 3 4 4 1 Final Capacity 8 | 8 8 8 8 8 8 5 5 5 5 5 5 5 5 5 5 5 5 Final Carried 8 | 1 8 6 8 8 6 5 5 5 4 5 5 5 5 5 5 5 5 Class Distribution -------------------- 39% | Scavenger-Tank 15% | Scavenger-Skirmisher 8% | Hacker-Mutant 7% | Scavenger-Gunner 7% | Tank 6% | Commander-Gunner 6% | Mutant 5% | Gunner Dominant Class ---------------- Mutant | -10/Materials Gunner | -9/Materials Commander-Gunner | -9/Storage Scavenger-Gunner | -8/Materials Scavenger-Gunner | -7/Factory Hacker-Mutant | -7/Waste Hacker-Mutant | -7/Factory Hacker-Gunner | -7/DSF Tank | -6/Factory Scavenger-Tank | -6/Extension Scavenger-Tank | -6/Cetus Scavenger-Tank | -6/Archives Scavenger-Skirmisher | -6/Hub_04(d) Scavenger-Tank | -5/Factory Scavenger-Tank | -4/Factory Scavenger-Tank | -3/Research Scavenger-Tank | -2/Research Resources | -11 -10 -9 -9 -8 -7 -7 -7 -7 -6 -6 -6 -6 -6 -5 -4 -3 -2 ----------- Run | Yrd Mat Mat Sto Mat Fac Was Fac DSF Fac Ext Cet Arc Hub Fac Fac Res Res Matter Collected 4149 | 273 5 58 273 330 . . 36 475 58 309 186 184 449 126 531 612 244 Remotely 858 | . . . . . . . . . . . . . 267 . 291 234 66 Salvage Created 3928 | 14 21 106 338 530 . . 28 378 70 75 294 66 351 126 495 488 548 Parts 181 | 2 . 5 18 30 . . 2 19 1 2 15 1 13 8 26 24 15 Haulers Intercepted 4 | . . 1 2 . . . . . . . . . 1 . . . . Recyclers Shooed 3 | . . . . 1 . . 1 . . 1 . . . . . . . Parts Field Recycled . | . . . . . . . . . . . . . . . . . . Retrieved Matter . | . . . . . . . . . . . . . . . . . . Parts Self-Destructed . | . . . . . . . . . . . . . . . . . . Prevented . | . . . . . . . . . . . . . . . . . . Kills | -11 -10 -9 -9 -8 -7 -7 -7 -7 -6 -6 -6 -6 -6 -5 -4 -3 -2 ------- Run | Yrd Mat Mat Sto Mat Fac Was Fac DSF Fac Ext Cet Arc Hub Fac Fac Res Res Combat Hostiles Destroyed 66 | . 2 1 5 13 . . . 6 1 1 4 1 3 2 10 8 9 Guns 52 | . 2 1 5 8 . . . 6 1 . 2 1 3 2 10 8 3 Cannons 3 | . . . . 1 . . . . . 1 1 . . . . . . AOE 10 | . . . . 4 . . . . . . . . . . . . 6 Classes Destroyed 16 | 1 1 2 3 4 . . . 3 . 1 . . . . . 1 . Worker 5 | . . . 2 . . . 1 . . . . . 1 . . 1 . Builder 3 | . . . . 1 . . . . . . . . 2 . . . . Tunneler 1 | 1 . . . . . . . . . . . . . . . . . Hauler 4 | . . 1 2 . . . . . . . . . 1 . . . . Operator 1 | . . . 1 . . . . . . . . . . . . . . Watcher 1 | . . . . . . . . . . 1 . . . . . . . Swarmer 14 | . 2 . 2 2 . . . . . . . . . . 4 4 . Grunt 25 | . . . 2 6 . . . 2 1 . . . 2 . 2 1 9 Duelist 1 | . . . . 1 . . . . . . . . . . . . . Sentry 11 | . . 1 1 3 . . . . . 1 . 1 1 . 2 1 . Demolisher 1 | . . . . 1 . . . . . . . . . . . . . Specialist 1 | . . . . . . . . 1 . . . . . . . . . Hunter 4 | . . . . 1 . . . 1 . . . . . 2 . . . Programmer 3 | . . . . . . . . 1 . . . . . . 2 . . Heavy 1 | . . . . . . . . 1 . . . . . . . . . Cetus Guard 4 | . . . . . . . . . . . 4 . . . . . . Striker 2 | . . . . . . . . . . . . . . . . 2 . Thug 1 | . . . . . . . . . . . 1 . . . . . . Best Kill Streak 9 | 1 2 2 3 9 . . 1 3 1 1 3 1 2 2 3 4 5 Combat Bots Only 8 | . 2 1 2 8 . . . 3 1 1 3 1 1 2 3 4 5 Max Kills in Single Turn 4 | 1 1 1 2 2 . . 1 1 1 1 1 1 1 1 2 1 4 Gunslinging . | . . . . . . . . . . . . . . . . . . Exploded 4 | . . . . 2 . . . . . . . . . . . . 4 Melee . | . . . . . . . . . . . . . . . . . . Uniques/NPCs Destroyed . | . . . . . . . . . . . . . . . . . . Combat | -11 -10 -9 -9 -8 -7 -7 -7 -7 -6 -6 -6 -6 -6 -5 -4 -3 -2 -------- Run | Yrd Mat Mat Sto Mat Fac Was Fac DSF Fac Ext Cet Arc Hub Fac Fac Res Res Hostile Shots Fired 804 | . 14 13 45 67 . 4 . 55 23 111 15 10 50 34 57 74 232 Missed 255 | . 4 3 18 18 . 1 . 22 12 30 7 4 18 4 15 27 72 Damage Taken 11189 | . 76 147 325 830 . 132 . 1072 170 1222 277 171 701 472 638 969 3987 Core 2050 | . 15 29 45 150 . . . 55 . 58 39 . 20 96 30 60 1453 Absorbed by Shields 643 | . . . . . . . . . . . 20 . . . 171 231 221 Ignored by Resistances 23 | . . . . . . . . . . . 23 . . . . . . Core Remaining (%) 89 | 100 94 . 81 72 . . . 92 . . . . 86 90 97 95 . Volleys Fired 211 | 3 5 4 25 30 . . 3 25 6 8 9 5 18 9 24 23 14 Largest 5 | 2 2 3 3 3 . . 1 3 3 4 4 4 4 4 4 4 5 Hottest 231 | 70 70 93 100 128 . . 88 231 130 218 145 126 126 126 161 161 201 Shots Fired 641 | 6 10 12 71 68 . . 3 59 17 27 31 20 71 36 84 86 40 Gun 586 | 6 10 12 70 59 . . 3 41 12 19 21 20 71 36 84 86 36 Cannon 38 | . . . . 1 . . . 18 5 8 6 . . . . . . Launcher 16 | . . . . 8 . . . . . . 4 . . . . . 4 Special 1 | . . . 1 . . . . . . . . . . . . . . Kinetic 531 | 3 5 8 67 59 . . . 39 12 12 27 20 71 36 79 64 29 Thermal 63 | 3 5 4 4 1 . . 3 19 5 15 . . . . . . 4 Explosive 12 | . . . . 8 . . . . . . . . . . . . 4 Electromagnetic 35 | . . . . . . . . 1 . . 4 . . . 5 22 3 Robot Hit Streak 12 | 3 3 4 6 10 . . 1 6 9 12 8 7 8 3 11 6 9 Robot Miss Streak 8 | 1 3 1 4 6 . . 2 3 5 8 2 2 4 4 4 4 2 Penetration Max 1 | . . . . . . . . . . . 1 1 1 1 1 1 1 Secondary Targets 9 | . 1 . . 4 . . . . . . . . . . . 2 2 Max Gunslinging Chain 1 | . 1 . . 1 . . . . . . . . . . . 1 1 Shots Hit Robots 391 | 4 5 7 40 46 . . 1 37 8 20 21 12 47 14 53 45 31 Core Hits 200 | 1 3 4 18 30 . . 1 13 3 8 14 6 23 6 21 23 26 Critical Kills 9 | . . . . . . . . . . . 1 . . 1 3 3 1 Critical Parts Destroyed 12 | . . 1 1 . . . . . . 1 . 1 3 . . 1 4 Critical Strikes 32 | 1 . 3 1 . . . . . . 3 1 2 3 1 4 5 8 Burn 4 | 1 . 2 . . . . . . . 1 . . . . . . . Destroy 26 | . . 1 1 . . . . . . 1 1 2 3 1 4 4 8 Blast 1 | . . . . . . . . . . 1 . . . . . . . Corrupt 1 | . . . . . . . . . . . . . . . . 1 . Melee Attacks . | . . . . . . . . . . . . . . . . . . Impact . | . . . . . . . . . . . . . . . . . . Slashing . | . . . . . . . . . . . . . . . . . . Piercing . | . . . . . . . . . . . . . . . . . . Sneak Attacks . | . . . . . . . . . . . . . . . . . . Combat Hostiles . | . . . . . . . . . . . . . . . . . . Follow-up Attacks . | . . . . . . . . . . . . . . . . . . Damage Inflicted 10753 | 43 45 86 613 1137 . . 27 763 144 480 776 358 1403 300 1440 1259 1879 Guns 7894 | 43 45 86 610 663 . . 27 486 117 257 371 358 1378 285 1342 1257 569 Cannons 677 | . . . . 25 . . . 277 27 201 147 . . . . . . Explosions 1962 | . . . . 444 . . . . . . 258 . . . . . 1260 Melee . | . . . . . . . . . . . . . . . . . . Ramming 220 | . . . 3 5 . . . . . 22 . . 25 15 98 2 50 Kinetic 7376 | 17 33 48 598 663 . . . 460 117 236 518 358 1378 285 1282 947 436 Thermal 906 | 26 12 38 12 25 . . 27 281 27 222 . . . . . . 236 Explosive 1550 | . . . . 444 . . . . . . . . . . . . 1106 Electromagnetic 701 | . . . . . . . . 22 . . 258 . . . 60 310 51 Impact . | . . . . . . . . . . . . . . . . . . Slashing . | . . . . . . . . . . . . . . . . . . Piercing . | . . . . . . . . . . . . . . . . . . Highest Corruption 15 | . . . . . . . . 11 . 10 15 15 15 . 5 3 3 Average Corruption 7 | . . . . . . . . 10 . 7 14 15 15 . 2 2 2 Corruption Purged 3 | . . . . . . . . . . 3 . . . . . . . Corruption Blocked . | . . . . . . . . . . . . . . . . . . Effects 69 | . . . . . . . . 3 . 8 19 7 12 . 6 13 1 Message Errors 23 | . . . . . . . . . . 5 5 1 3 . 4 5 . Matter Fused 15 | . . . . . . . . 1 . . 5 1 5 . 1 2 . Heat Flow Errors 12 | . . . . . . . . 1 . 1 3 2 2 . . 2 1 Energy Discharges 7 | . . . . . . . . 1 . 1 3 . 1 . 1 . . Parts Fused 1 | . . . . . . . . . . 1 . . . . . . . Data Loss (minor) 7 | . . . . . . . . . . . 2 1 . . . 4 . Misfires 1 | . . . . . . . . . . . . 1 . . . . . Weapon Failures 3 | . . . . . . . . . . . 1 1 1 . . . . Overload Shots . | . . . . . . . . . . . . . . . . . . Overflow Damage 32 | . . . . 11 . . . . . . . . . . . . 21 Projectiles . | . . . . . . . . . . . . . . . . . . Explosions 32 | . . . . 11 . . . . . . . . . . . . 21 Melee . | . . . . . . . . . . . . . . . . . . Knockbacks 5 | . . . . . . . . . . 1 . . 1 . 3 . . Impact 5 | . . . . . . . . . . 1 . . 1 . 3 . . Kinetic . | . . . . . . . . . . . . . . . . . . Secondary . | . . . . . . . . . . . . . . . . . . Self-Inflicted Damage 73 | . . . . . . . . . . . . . . . . . 73 Shots 1 | . . . . . . . . . . . . . . . . . 1 Rammed 9 | . . . . . . . . . . . . . . . . . 9 Targets Rammed 31 | . . . 2 2 . . . . . 3 . . 4 1 8 2 9 Kicked 22 | . . . 2 2 . . . . . 3 . . 4 1 8 2 . Crushed . | . . . . . . . . . . . . . . . . . . Highest Temperature 963 | 40 70 57 48 78 . . 64 264 364 963 210 158 327 428 260 243 522 Average Temperature 103 | 19 28 29 7 25 . . 28 112 191 273 57 67 84 225 63 88 134 Received Heat Transfer 3878 | . . 45 90 189 . . . 135 72 1216 31 27 129 9 77 60 1798 Effects 27 | . . . . . . . . . 1 20 . . . 3 . 1 2 Shutdowns 4 | . . . . . . . . . . 2 . . . 1 . . 1 Energy Bleed 3 | . . . . . . . . . 1 1 . . . 1 . . . Interference 3 | . . . . . . . . . . 2 . . . . . 1 . Matter Decay 3 | . . . . . . . . . . 3 . . . . . . . Short Circuit 3 | . . . . . . . . . . 1 . . . 1 . . 1 Damage (minor) 1 | . . . . . . . . . . 1 . . . . . . . Damage (major) 10 | . . . . . . . . . . 10 . . . . . . . Siege Activations . | . . . . . . . . . . . . . . . . . . Robots Corrupted 1 | . . . . . . . . . . . 1 . . . . . . Combat Hostiles 1 | . . . . . . . . . . . 1 . . . . . . Parts Fried 3 | . . . . . . . . . . . 3 . . . . . . Impact Corruptions . | . . . . . . . . . . . . . . . . . . Robots Melted . | . . . . . . . . . . . . . . . . . . Combat Hostiles . | . . . . . . . . . . . . . . . . . . Parts Melted 3 | . . . . . . . . 1 . 2 . . . . . . . Heat Transferred 2003 | 148 37 259 37 37 . . 37 537 50 650 . . . . . . 211 Parts Sabotaged . | . . . . . . . . . . . . . . . . . . Parts Stolen . | . . . . . . . . . . . . . . . . . . Parts Stripped . | . . . . . . . . . . . . . . . . . . Power Chain Reactions 1 | . . . . . . . . . . . . . . . . . 1 Alert | -11 -10 -9 -9 -8 -7 -7 -7 -7 -6 -6 -6 -6 -6 -5 -4 -3 -2 ------- Run | Yrd Mat Mat Sto Mat Fac Was Fac DSF Fac Ext Cet Arc Hub Fac Fac Res Res Peak Influence 1236 | 5 80 100 578 509 159 55 67 155 81 227 246 282 1236 671 400 215 251 Initial 595 | . 3 33 42 200 147 55 10 . 81 21 126 94 98 595 323 210 101 Average 198 | 1 44 60 325 364 152 37 24 51 20 88 208 247 536 628 300 119 103 Maximum Alert Level 4 | . . . 2 2 . . . . . 1 1 1 4 2 2 1 1 Low Security (%) 54 | 100 100 100 28 . 100 100 100 100 100 90 15 19 42 . 16 60 88 Level 1 32 | . . . 25 58 . . . . . 9 84 80 4 . 73 39 11 Level 2 10 | . . . 45 42 . . . . . . . . 9 100 10 . . Level 3 1 | . . . . . . . . . . . . . 33 . . . . Level 4 . | . . . . . . . . . . . . . 10 . . . . Level 5 . | . . . . . . . . . . . . . . . . . . High Security . | . . . . . . . . . . . . . . . . . . Max Security . | . . . . . . . . . . . . . . . . . . Squads Dispatched 33 | . . . 3 3 . . . 2 . 1 . . 5 1 2 8 8 Investigation 13 | . . . 2 . . . . . . 1 . . 1 1 1 5 2 Extermination 2 | . . . . . . . . . . . . . . . 1 . 1 Reinforcement 17 | . . . 1 2 . . . 2 . . . . 4 . . 3 5 Assault . | . . . . . . . . . . . . . . . . . . Garrison 1 | . . . . 1 . . . . . . . . . . . . . Intercept . | . . . . . . . . . . . . . . . . . . Searches Triggered . | . . . . . . . . . . . . . . . . . . Construction Impeded . | . . . . . . . . . . . . . . . . . . Haulers Reinforced 3 | . . . . . . . . . . . . . 2 . . . 1 Active Scanning Responses 2 | . . . . . . . . . . . . . 1 . 1 . . Cargo Convoy Interrupts . | . . . . . . . . . . . . . . . . . . Stealth | -11 -10 -9 -9 -8 -7 -7 -7 -7 -6 -6 -6 -6 -6 -5 -4 -3 -2 --------- Run | Yrd Mat Mat Sto Mat Fac Was Fac DSF Fac Ext Cet Arc Hub Fac Fac Res Res Distress Signals 15 | . . . . 2 . . . . . 1 2 . 1 . 1 4 4 Communications Jammed 95 | . . . . . . . . . . 75 1 . 9 1 1 8 . Distress Signals 87 | . . . . . . . . . . 75 1 . 2 . 1 8 . Times Spotted 200 | . 4 2 19 25 . 6 . 7 2 14 10 7 17 4 18 26 39 Peak Tracking Total 29 | . 3 2 6 7 . 6 . 2 3 5 5 2 8 2 4 5 29 Tactical Retreats 13 | . . . 2 . . . . 3 . . . . 1 . 3 1 3 Traps | -11 -10 -9 -9 -8 -7 -7 -7 -7 -6 -6 -6 -6 -6 -5 -4 -3 -2 ------- Run | Yrd Mat Mat Sto Mat Fac Was Fac DSF Fac Ext Cet Arc Hub Fac Fac Res Res Traps Triggered 11 | . . . . . 1 . 1 1 . 3 . . . . . 2 3 Indirectly . | . . . . . . . . . . . . . . . . . . Trap Hack Attempts . | . . . . . . . . . . . . . . . . . . Triggered . | . . . . . . . . . . . . . . . . . . Disarmed . | . . . . . . . . . . . . . . . . . . Reprogrammed . | . . . . . . . . . . . . . . . . . . Reused . | . . . . . . . . . . . . . . . . . . Traps Extracted . | . . . . . . . . . . . . . . . . . . Installed . | . . . . . . . . . . . . . . . . . . Triggered . | . . . . . . . . . . . . . . . . . . Machines | -11 -10 -9 -9 -8 -7 -7 -7 -7 -6 -6 -6 -6 -6 -5 -4 -3 -2 ---------- Run | Yrd Mat Mat Sto Mat Fac Was Fac DSF Fac Ext Cet Arc Hub Fac Fac Res Res Machines Disabled 13 | . . . . . . . . . . 2 1 2 7 . . . 1 Max in Single Turn 1 | . . . . . . . . . . . 1 1 1 . . . 1 Garrison Access 3 | . . . . 1 1 . . . . . . . . . . . 1 Machines Repaired . | . . . . . . . . . . . . . . . . . . Machines Dismantled . | . . . . . . . . . . . . . . . . . . Machines Sabotaged 1 | . . . 1 . . . . . . . . . . . . . . Overloaded Fab Kills . | . . . . . . . . . . . . . . . . . . Hacking | -11 -10 -9 -9 -8 -7 -7 -7 -7 -6 -6 -6 -6 -6 -5 -4 -3 -2 --------- Run | Yrd Mat Mat Sto Mat Fac Was Fac DSF Fac Ext Cet Arc Hub Fac Fac Res Res Machines Accessed 59 | . 2 . 7 5 2 . 5 . 2 16 3 1 1 3 4 5 3 Terminals 44 | . 1 . 7 3 . . 3 . 2 16 3 . 1 2 . 4 2 Fabricators 1 | . . . . . . . . . . . . . . . 1 . . Repair Stations 2 | . . . . . 1 . . . . . . . . . 1 . . Recycling Units 4 | . 1 . . 1 . . . . . . . . . . 1 1 . Scanalyzers 2 | . . . . . . . 1 . . . . . . . 1 . . Garrison Access 5 | . . . . 1 1 . 1 . . . . . . 1 . . 1 Total Hacks 159 | . 6 . 18 16 4 . 11 . 10 45 11 1 2 7 9 11 8 Successful 64 | . 3 . 9 7 2 . 5 . 5 13 4 1 1 2 3 5 4 Failed 95 | . 3 . 9 9 2 . 6 . 5 32 7 . 1 5 6 6 4 Catastrophic 14 | . . . . 1 1 . 2 . 3 3 . . 1 . 1 1 1 Database Lockouts . | . . . . . . . . . . . . . . . . . . Manual 22 | . . . 5 4 . . . . 2 5 1 . 1 . . 4 . Terminals 124 | . 4 . 18 8 . . 7 . 10 45 11 . 2 5 . 8 6 Fabricators 1 | . . . . . . . . . . . . . . . 1 . . Repair Stations 6 | . . . . . 3 . . . . . . . . . 3 . . Recycling Units 10 | . 2 . . 3 . . . . . . . . . . 2 3 . Scanalyzers 5 | . . . . . . . 2 . . . . . . . 3 . . Garrison Access 12 | . . . . 5 1 . 2 . . . . . . 2 . . 2 Terminal Hacks 49 | . 3 . 7 4 . . 4 . 5 13 4 1 1 2 . 2 3 Record 8 | . . . 1 2 . . . . . 1 3 1 . . . . . Prototype ID Bank 1 | . 1 . . . . . . . . . . . . . . . . Open Door 10 | . . . . . . . . . . 9 1 . . . . . . Open DSF 2 | . . . . . . . 1 . . . . . . . . 1 . Level Access Points 2 | . . . . . . . . . . . . . . . . 1 1 Branch Access Points 5 | . 1 . . 1 . . 1 . 1 . . . . 1 . . . Emergency Access Points 2 | . 1 . . . . . . . 1 . . . . . . . . Alert Level 6 | . . . 2 . . . . . 1 1 . . 1 1 . . . Unreport Threat 4 | . . . 1 . . . 1 . 1 . . . . . . . 1 Locate Traps 1 | . . . . . . . 1 . . . . . . . . . . Dispatch Records 1 | . . . . . . . . . . 1 . . . . . . . Security Status 1 | . . . 1 . . . . . . . . . . . . . . Investigation Status 1 | . . . . . . . . . . 1 . . . . . . . Reinforcement Status 1 | . . . . 1 . . . . . . . . . . . . . Hauler Manifests 1 | . . . . . . . . . 1 . . . . . . . . Zone Layout 3 | . . . 2 . . . . . . . . . . . . . 1 Fabricator Hacks . | . . . . . . . . . . . . . . . . . . Repair Station Hacks 2 | . . . . . 1 . . . . . . . . . 1 . . Scan Component 2 | . . . . . 1 . . . . . . . . . 1 . . Recycling Unit Hacks 5 | . . . . 2 . . . . . . . . . . 1 2 . Process 1 | . . . . 1 . . . . . . . . . . . . . Report Inventory 3 | . . . . 1 . . . . . . . . . . 1 1 . Retrieve Components 1 | . . . . . . . . . . . . . . . . 1 . Scanalyzer 2 | . . . . . . . 1 . . . . . . . 1 . . Insert Component 2 | . . . . . . . 1 . . . . . . . 1 . . Garrison Access Hacks 3 | . . . . 1 1 . . . . . . . . . . . 1 Seal Access 3 | . . . . 1 1 . . . . . . . . . . . 1 Unauthorized Hacks 3 | . . . 2 . . . . . . . . . . . . 1 . Terminals 2 | . . . 2 . . . . . . . . . . . . . . Assimilate 1 | . . . 1 . . . . . . . . . . . . . . Sabotage 1 | . . . 1 . . . . . . . . . . . . . . Fabricators . | . . . . . . . . . . . . . . . . . . Repair Stations . | . . . . . . . . . . . . . . . . . . Recycling Units 1 | . . . . . . . . . . . . . . . . 1 . Tunnel 1 | . . . . . . . . . . . . . . . . 1 . Scanalyzers . | . . . . . . . . . . . . . . . . . . Garrison Access . | . . . . . . . . . . . . . . . . . . Data Cores Recovered 1 | . . . 1 . . . . . . . . . . . . . . Used . | . . . . . . . . . . . . . . . . . . Hacking Detections 49 | . 2 . 7 5 1 . 4 . 2 11 2 . 1 3 3 5 3 Full Trace Events 8 | . . . 2 1 . . . . . 1 . . . 1 . 2 1 Feedback Events . | . . . . . . . . . . . . . . . . . . Feedback Blocked . | . . . . . . . . . . . . . . . . . . Robot Schematics Acquired . | . . . . . . . . . . . . . . . . . . Robots Built . | . . . . . . . . . . . . . . . . . . Authchips . | . . . . . . . . . . . . . . . . . . Time . | . . . . . . . . . . . . . . . . . . Total Robot Build Rating . | . . . . . . . . . . . . . . . . . . Part Schematics Acquired . | . . . . . . . . . . . . . . . . . . Parts Built . | . . . . . . . . . . . . . . . . . . Authchips . | . . . . . . . . . . . . . . . . . . Time . | . . . . . . . . . . . . . . . . . . Total Part Build Rating . | . . . . . . . . . . . . . . . . . . Parts Repaired . | . . . . . . . . . . . . . . . . . . Time . | . . . . . . . . . . . . . . . . . . Parts Recycled . | . . . . . . . . . . . . . . . . . . Recycled Matter . | . . . . . . . . . . . . . . . . . . Retrieved Matter . | . . . . . . . . . . . . . . . . . . Retrieved Components 3 | . . . . . . . . . . . . . . . . 3 . Parts Scanalyzed 2 | . . . . . . . 1 . . . . . . . 1 . . Part Schematics Acquired . | . . . . . . . . . . . . . . . . . . Parts Damaged 1 | . . . . . . . . . . . . . . . 1 . . Bothacking | -11 -10 -9 -9 -8 -7 -7 -7 -7 -6 -6 -6 -6 -6 -5 -4 -3 -2 ------------ Run | Yrd Mat Mat Sto Mat Fac Was Fac DSF Fac Ext Cet Arc Hub Fac Fac Res Res Used RIF Installer . | . . . . . . . . . . . . . . . . . . Robots Hacked . | . . . . . . . . . . . . . . . . . . Non-combat . | . . . . . . . . . . . . . . . . . . Combat . | . . . . . . . . . . . . . . . . . . Robot Hacks Applied . | . . . . . . . . . . . . . . . . . . Relay Couplers Released . | . . . . . . . . . . . . . . . . . . Fabnet Peak Effective % . | . . . . . . . . . . . . . . . . . . Robots Rewired . | . . . . . . . . . . . . . . . . . . Allies Hacked . | . . . . . . . . . . . . . . . . . . Hacks Repelled . | . . . . . . . . . . . . . . . . . . Allies | -11 -10 -9 -9 -8 -7 -7 -7 -7 -6 -6 -6 -6 -6 -5 -4 -3 -2 -------- Run | Yrd Mat Mat Sto Mat Fac Was Fac DSF Fac Ext Cet Arc Hub Fac Fac Res Res Total Allies 28 | . . . 10 . . . . . . 13 5 . . . . . . Largest Group 10 | . . . 10 9 . . . . . 6 8 8 5 . . . . Highest-Rated Group 681 | . . . 88 80 . . . . . 316 681 663 466 . . . . Highest-Rated Ally 159 | . . . 16 16 . . . . . 159 159 137 96 . . . . Total Orders . | . . . . . . . . . . . . . . . . . . Ally Attacks 300 | . . . 68 19 . . . . . 86 46 27 54 . . . . Total Damage 7288 | . . . 643 158 . . . . . 1707 1797 644 2339 . . . . Kills 58 | . . . 11 3 . . . . . 15 5 3 21 . . . . Allies Corrupted . | . . . . . . . . . . . . . . . . . . Allies Melted 2 | . . . . . . . . . . . . . 2 . . . . Intel | -11 -10 -9 -9 -8 -7 -7 -7 -7 -6 -6 -6 -6 -6 -5 -4 -3 -2 ------- Run | Yrd Mat Mat Sto Mat Fac Was Fac DSF Fac Ext Cet Arc Hub Fac Fac Res Res Robot Analysis Total . | . . . . . . . . . . . . . . . . . . Derelict Logs Recovered . | . . . . . . . . . . . . . . . . . . Drone Launches . | . . . . . . . . . . . . . . . . . . Drone Recoveries . | . . . . . . . . . . . . . . . . . . Exploration | -11 -10 -9 -9 -8 -7 -7 -7 -7 -6 -6 -6 -6 -6 -5 -4 -3 -2 ------------- Run | Yrd Mat Mat Sto Mat Fac Was Fac DSF Fac Ext Cet Arc Hub Fac Fac Res Res Turns Passed 7054 | 83 220 70 496 450 189 119 452 303 156 787 512 152 286 204 1117 1017 441 Spaces Moved 4636 | 51 153 45 296 272 137 93 392 111 101 537 362 107 156 138 632 712 341 Core 116 | 11 . . . . 1 3 . . . . . . . . . . 101 Treads . | . . . . . . . . . . . . . . . . . . Legs 4234 | 40 153 45 296 272 136 90 128 89 101 537 362 107 156 138 632 712 240 Wheels 284 | . . . . . . . 262 22 . . . . . . . . . Hover . | . . . . . . . . . . . . . . . . . . Flight 2 | . . . . . . . 2 . . . . . . . . . . Fastest Speed 50 | 50 120 120 120 120 120 50 50 95 130 120 120 120 120 120 120 120 50 Average Speed 120 | 124 120 120 120 121 128 119 107 154 130 128 120 120 121 120 122 120 104 Slowest Speed 400 | 250 120 120 120 190 400 123 190 260 130 200 120 120 190 120 190 190 260 Overloaded Moves . | . . . . . . . . . . . . . . . . . . Propulsion Burnouts . | . . . . . . . . . . . . . . . . . . Robots Hopped . | . . . . . . . . . . . . . . . . . . Cave-ins Triggered 1 | . . . . . . . . 1 . . . . . . . . . Exploration Rate (%) 37 | 3 33 8 59 25 5 84 12 88 4 77 92 87 27 4 16 27 19 Regions Visited 17 Branch Regions 5 Pre-discovered Areas 1 | . . . . . . . . . . . . . . . . 1 . Known Exits Taken 11 | . . . 1 1 . . 1 . 1 1 1 1 1 1 1 1 . Unknown Exits Taken 3 | 1 1 1 . . . . . . . . . . . . . . . Scrap Searched . | . . . . . . . . . . . . . . . . . . Spaces Dug 1 | . . . 1 . . . . . . . . . . . . . . Terrain Destroyed 148 | . . . 1 35 . . . . . 1 1 4 15 13 18 1 59 Melee . | . . . . . . . . . . . . . . . . . . Projectile 54 | . . . 1 . . . . . . 1 1 4 15 13 18 1 . AOE 94 | . . . . 35 . . . . . . . . . . . . 59 Terrain Rammed . | . . . . . . . . . . . . . . . . . . Walls Destroyed . | . . . . . . . . . . . . . . . . . . Machines Disabled . | . . . . . . . . . . . . . . . . . . Actions | -11 -10 -9 -9 -8 -7 -7 -7 -7 -6 -6 -6 -6 -6 -5 -4 -3 -2 --------- Run | Yrd Mat Mat Sto Mat Fac Was Fac DSF Fac Ext Cet Arc Hub Fac Fac Res Res Total 5632 | 61 182 53 381 334 151 100 419 201 114 611 418 118 206 157 919 812 395 Wait 393 | . 12 3 40 1 . . 7 31 4 27 21 7 4 . 198 28 10 Move 4621 | 50 152 44 295 271 137 92 391 110 100 536 361 106 156 137 631 711 341 Hop . | . . . . . . . . . . . . . . . . . . Pick Up 58 | 1 8 . 4 5 1 4 1 7 . 2 4 . 2 1 11 4 3 Fast Attach 104 | 7 . . 4 8 4 2 5 8 2 15 7 . 7 2 9 15 9 Attach 37 | . . 2 1 4 2 . 2 5 1 . . . 1 2 10 2 5 Detach 27 | . . . 1 1 . . 1 3 1 2 2 . 3 . 6 4 3 Swap 42 | . 2 . 3 5 1 1 . 1 . 1 5 . 5 3 7 8 . Drop 84 | . 3 . 6 7 6 1 1 6 . 6 9 . 7 2 15 14 1 Fire 211 | 3 5 4 25 30 . . 3 25 6 8 9 5 18 9 24 23 14 Melee . | . . . . . . . . . . . . . . . . . . Ram 9 | . . . . . . . . . . . . . . . . . 9 Kick 21 | . . . 2 2 . . . . . 3 . . 3 1 8 2 . Crush . | . . . . . . . . . . . . . . . . . . Escape Stasis 24 | . . . . . . . 8 5 . 11 . . . . . . . Rewire 1 | . . . . . . . . . . . . . . . . 1 . Trap . | . . . . . . . . . . . . . . . . . . Miscellaneous . | . . . . . . . . . . . . . . . . . . Route ------- -11/Scrapyard -10/Materials (discovered 2 exits: [*Mat] / Min) -9/Materials -9/Storage -8/Materials -7/Factory -7/Waste -7/Factory (discovered 3 exits: Low x2 / DSF) -7/DSF -6/Factory (discovered 4 exits: Low x2 / *Ext x2) -6/Extension (discovered 2 exits: *Fac / *Cet) -6/Cetus (discovered 3 exits: *Fac x2 / *Arc) -6/Archives (discovered 3 exits: *Fac / *Hub x2) -6/Hub_04(d) -5/Factory (discovered 3 exits: *Fac / Upp x2) -4/Factory -3/Research (discovered 3 exits: *Res x3) -2/Research (discovered 3 exits: *Acc x3) History --------- Turn | Location | Event 17 | -11/Scrapyard | Discovered new exit (range 16) 84 | -11/Scrapyard | Entered Materials 198 | -10/Materials | Identified exit to Mines 285 | -10/Materials | Discovered new exit (range 12) 304 | -10/Materials | Entered another Materials area 304 | -9/Materials | Evolved 2 slots: Utility x1, Weapon x1 344 | -9/Materials | Discovered new exit (range 7) 374 | -9/Materials | Entered Storage 491 | -9/Storage | Assisted by bots powering up and referring to "LRC-V3" 806 | -9/Storage | Build established: Commander-Gunner 832 | -9/Storage | Discovered new exit (range 8) 841 | -9/Storage | Identified exit to Materials 870 | -9/Storage | Entered Materials 870 | -8/Materials | Accompanied by 9 allies 870 | -8/Materials | Evolved 2 slots: Propulsion x1, Utility x1 934 | -8/Materials | Garrison activated, responded to threat 974 | -8/Materials | Lost 9 allies 1010 | -8/Materials | Destroyed 8 combat bots 1013 | -8/Materials | Lost 4 parts (1n3w) 1130 | -8/Materials | Lost 3 parts (2n1u) 1285 | -8/Materials | Discovered new exit (range 10) 1295 | -8/Materials | Identified exit to Factory 1320 | -8/Materials | Entered Factory 1320 | -7/Factory | Evolved 2 slots: Utility x1, Weapon x1 1509 | -7/Factory | Sucked down chute 1509 | -7/Factory | Entered Waste 1517 | -7/Waste | Spotted C-40 Crusher 1537 | -7/Waste | Spotted C-40 Crusher 1550 | -7/Waste | Spotted C-40 Crusher 1555 | -7/Waste | Spotted C-40 Crusher 1556 | -7/Waste | Spotted C-40 Crusher 1564 | -7/Waste | Crushed by Compactor (1 part destroyed, 2 dropped) 1569 | -7/Waste | Crushed by Compactor (1 part destroyed, 1 dropped) 1578 | -7/Waste | Spotted C-40 Crusher 1586 | -7/Waste | Crushed by Compactor (1 part destroyed, 2 dropped) 1613 | -7/Waste | Discovered new exit (range 12) 1617 | -7/Waste | Lost 4 parts (1p1n1u1w) 1627 | -7/Waste | Identified exit to Factory 1628 | -7/Waste | Entered Factory 1756 | -7/Factory | Identified exit to Lower Caves 1885 | -7/Factory | Build established: Hacker-Mutant 2080 | -7/Factory | Identified exit to DSF 2080 | -7/Factory | Entered DSF 2136 | -7/DSF | Additional patrols routed to DSF 2219 | -7/DSF | Found Powered Armor 2249 | -7/DSF | Lost 4 parts (1p1u2w) 2255 | -7/DSF | Crushed by falling debris 2275 | -7/DSF | System corruption reached 10% 2349 | -7/DSF | Discovered new exit (range 15) 2382 | -7/DSF | Identified exit to Factory 2383 | -7/DSF | Entered Factory 2383 | -6/Factory | Evolved 2 slots: Propulsion x1, Utility x1 2501 | -6/Factory | Identified exit to Lower Caves 2501 | -6/Factory | Identified exit to Extension 2539 | -6/Factory | Entered Extension 2594 | -6/Extension | Rescued a captive Derelict 2636 | -6/Extension | Rescued a captive Derelict 2637 | -6/Extension | Rescued a captive Derelict 2663 | -6/Extension | Build established: Tank 2675 | -6/Extension | Rescued a captive Derelict 2761 | -6/Extension | Rescued a captive Derelict 2761 | -6/Extension | Rescued a captive Derelict 2791 | -6/Extension | Rescued a captive Derelict 2824 | -6/Extension | Spotted B-75 Beast 2832 | -6/Extension | Spotted B-75 Beast 2850 | -6/Extension | Allies destroyed B-75 Beast 2855 | -6/Extension | Allies destroyed B-75 Beast 2879 | -6/Extension | Lost 8 parts (1p2n3u2w) 2910 | -6/Extension | Lost 3 allies 2999 | -6/Extension | Rescued A7 3043 | -6/Extension | System corruption reached 10% 3061 | -6/Extension | Rescued a captive Derelict 3062 | -6/Extension | Rescued a captive Derelict 3208 | -6/Extension | Rescued a captive Derelict 3224 | -6/Extension | Build established: Scavenger-Tank 3276 | -6/Extension | Rescued a captive Derelict 3276 | -6/Extension | Rescued a captive Derelict 3301 | -6/Extension | Discovered new exit (range 10) 3302 | -6/Extension | Discovered new exit (range 6) 3321 | -6/Extension | Identified exit to Factory 3323 | -6/Extension | Identified exit to Cetus 3326 | -6/Extension | Entered Cetus 3326 | -6/Cetus | Accompanied by 6 allies (A7) 3331 | -6/Cetus | Acquired a Cetus Manufacturing Module code from A7 3341 | -6/Cetus | Spotted Cetus Guard 3341 | -6/Cetus | Spotted Cetus Guard 3341 | -6/Cetus | Spotted Cetus Guard 3342 | -6/Cetus | Spotted Cetus Guard 3348 | -6/Cetus | Allies destroyed Cetus Guard 3355 | -6/Cetus | Destroyed Cetus Guard 3362 | -6/Cetus | Destroyed Cetus Guard 3364 | -6/Cetus | Destroyed Cetus Guard 3390 | -6/Cetus | Lost 3 allies 3430 | -6/Cetus | Escorted A7 to Cetus Mainframe 3440 | -6/Cetus | Started Cetus Manufacturing Module 3465 | -6/Cetus | Manufactured an Enhanced Grunt 3490 | -6/Cetus | Manufactured an Enhanced Grunt 3515 | -6/Cetus | Manufactured an Enhanced Grunt 3534 | -6/Cetus | Discovered exit to Factory (range 22) 3540 | -6/Cetus | Manufactured an Enhanced Grunt 3565 | -6/Cetus | Manufactured an Enhanced Grunt 3612 | -6/Cetus | Discovered new exit (range 21) 3636 | -6/Cetus | Identified exit to Archives 3659 | -6/Cetus | Spotted Cetus Guard 3659 | -6/Cetus | Spotted Cetus Guard 3659 | -6/Cetus | Spotted Cetus Guard 3659 | -6/Cetus | Spotted Cetus Guard 3744 | -6/Cetus | Discovered exit to Factory (range 21) 3757 | -6/Cetus | Allies destroyed Cetus Guard 3758 | -6/Cetus | Destroyed Cetus Guard 3761 | -6/Cetus | Allies destroyed Cetus Guard 3766 | -6/Cetus | Allies destroyed Cetus Guard 3770 | -6/Cetus | Met Revision 17 3838 | -6/Cetus | Entered Archives 3838 | -6/Archives | Accompanied by 8 allies (A7) 3847 | -6/Archives | Received a hacking code to weaken MAIN.C 3877 | -6/Archives | Discovered new exit (range 22) 3889 | -6/Archives | Unable to access archive contents 3894 | -6/Archives | Discovered exit to Factory (range 17) 3900 | -6/Archives | Discovered new exit (range 18) 3908 | -6/Archives | Unable to access archive contents 3944 | -6/Archives | Identified exit to Hub_04(d) 3990 | -6/Archives | Entered Hub_04(d) 3990 | -6/Hub_04(d) | Accompanied by 5 allies 4160 | -6/Hub_04(d) | Lost 3 parts (2n1u) 4169 | -6/Hub_04(d) | Found Prototype Device 4169 | -6/Hub_04(d) | Identified Active Sensor Suite 4252 | -6/Hub_04(d) | Discovered exit to Factory (range 14) 4276 | -6/Hub_04(d) | Entered Factory 4276 | -5/Factory | Evolved 2 slots: Utility x2 4344 | -5/Factory | Discovered new exit (range 12) 4346 | -5/Factory | Identified exit to Upper Caves 4420 | -5/Factory | Identified exit to Factory 4480 | -5/Factory | Entered another Factory area 4480 | -4/Factory | Evolved 2 slots: Power x1, Utility x1 4709 | -4/Factory | Build established: Scavenger-Skirmisher 5233 | -4/Factory | Build established: Scavenger-Tank 5573 | -4/Factory | Discovered new exit (range 11) 5595 | -4/Factory | Identified exit to Research 5597 | -4/Factory | Entered Research 5597 | -3/Research | Evolved 2 slots: Propulsion x1, Utility x1 5797 | -3/Research | Revision forces began assault on 0b10 5911 | -3/Research | Met up with Revision 17++ 5996 | -3/Research | Found Fusion Bomb Launcher 6205 | -3/Research | Found Prototype Processor 6205 | -3/Research | Identified Exp. Target Analyzer 6240 | -3/Research | Identified exit to Research 6264 | -3/Research | Found Exp. Target Analyzer 6297 | -3/Research | Research terminal network offline 6393 | -3/Research | Spotted Striker 6393 | -3/Research | Spotted Striker 6402 | -3/Research | Destroyed Striker 6405 | -3/Research | Destroyed Striker 6600 | -3/Research | Build established: Scavenger-Skirmisher 6614 | -3/Research | Entered another Research area 6614 | -2/Research | Evolved 2 slots: Utility x1, Weapon x1 6654 | -2/Research | Spotted B-90 Cyclops 6836 | -2/Research | Spotted B-90 Cyclops 6846 | -2/Research | Identified exit to Access 6875 | -2/Research | Lost 10 parts (1p3n3u3w) 6975 | -2/Research | Lost 9 parts (1p2n3u3w) 7025 | -2/Research | Spotted B-90 Cyclops 7031 | -2/Research | Core integrity fell below 50% 7041 | -2/Research | Found Powered Armor 7043 | -2/Research | Found Powered Armor 7044 | -2/Research | Found Powered Armor 7049 | -2/Research | Core integrity fell below 20% 7051 | -2/Research | Lost 8 parts (2n5u1w) 7055 | -2/Research | Destroyed by G-73 Enforcer with Heavy Laser Last Messages --------------- C-30 ARC bursts open, deploying its payload. G-73 Enforcer unfolds itself. K-01 Serf collects debris. B-90 Cyclops activates siege mode. K-01 Serf collects debris. P-80 Master resets K-01 Serf, system corruption cleaned. Acquired Powered Armor. Slammed into A-15 Conveyor. Triggered Alarm Trap. An alarm sounds. ALERT: Alarm triggered, dispatching investigation squad. A-15 Conveyor calls for reinforcements. ALERT: Hostile activity reported, dispatching reinforcements to area. P-80 Master resets P-80 Master, system corruption cleaned. Slammed into Y-72 Warden. ALERT: Hostiles spotted, dispatching reinforcements to Terminal R003. Slammed into G-73 Enforcer. Exp. Target Analyzer broken. Destabilizing: Short circuit. [Achievement: Achiever] Map ----- +----------------------------------------------------+ | ?????????????????????????????????????????????????? | | ?????????????????????????????????????????????????? | | ?????????????????????????????????????????????????? | | ?????????????????????????????????????????????????? | | ?????????????????????????????????????????????????? | | ?????????????????????????????????????????????????? | | ?????????????????????????????????????????????????? | | ?????????????????????????????????????????????????? | | ?????????????????????????????????????????????????? | | ?????????????????????????????????????????????????? | | ?????????????????????????????????????????????????? | | ??????????????????????#########??????????????????? | | ??????????????????????# #??????????????????? | | ??????????????????????# #??????????????????? | | ??????????????????????# #??????????????????? | | ??????????????????????# #??????????????????? | | ??????????????????????# #??????????????????? | | ??????????????????????# #??????????????????? | | ??????????????????????# #??????????????????? | | ??????????????????????# #??????????????????? | | ??????????????????????# #??????????????????? | | ??????????????##???????? #??????????????????? | | ??????????????# ??????? ###+########### ???? | | ??????????????# g#######+## g ???? | | ??????????????# ] gggg % ??? | | ??????????????# < gg g@ Y ??? | | ??????????????# !########## A A ??? | | ??????????????# !????????????# #########?????? | | ??????????????????????????????# #?????????????? | | ????????????#################?# #????????? # | | ???????????? ###% +????????# | | ??????????? #????????# | | ??????????? #????????# | | ??????????? #????????# | | ??????????????########## ! ##????????# | | ???????????????????????# ! #?????????# | | ???????????????????????# ! #?????????# | | ???????????????????????# #?????????# | | ???????????????????????# #?????????# | | ???????????????????????# #?????????# | | ???????????????????????# #?????????# | | ???????????????????????# """" #?????????# | | ???????????????????????# """" #?????????# | | ???????????????????????# """" ########### | | ???????????????????????# """" | | ???????????????????????# | | ???????????????????????# | | ???????????????????????# " | | ???????????????????????####+###################### | | ?????????????????????????????????????????????????? | +----------------------------------------------------+ Best States ------------- Heat Dissipation 68 Energy Generation 45 Energy Capacity 600 Matter Stores 300 Matter Capacity 300 Sight Range 22 Robot Scan Range 20 Terrain Scan Density 10 Jamming Range 14 Cloak Strength 3 Armor Coverage 450 Resistance: TH 15 Weapon Shielding 90 Point Defense Rating 160 Weapon Cycling 15 Phase Shifting 5 Evasion (%) 60 Targeting Accuracy 13 Target Analysis 10 Core Analysis 6 Offensive Hacking 28 Defensive Hacking 10 Item Schematics ----------------- None Robot Schematics ------------------ None Fabricated ------------ Nothing Alien Tech Used ----------------- None Achievements -------------- Achiever Backstab Main Advantage Project G-00 Revising The Future Revolutionary Research Rockin' Loadout True Hacker Challenges ------------ None Game ------ Seed ReactiveForcePlatform Manual? 0 Play Time 02:43:53 Cumulative 29.5 hours Start 2024.04.14 @ 17:17:10 End 2024.04.14 @ 20:58:49 Sessions 3 Manual Loads 0 Difficulty Rogue Special Mode None Game No. 19 Rogue 19 Adventurer 0 Explorer 0 Win Type - Total 0 Types 0/0/0/0/0/0/0/0/0 Lore% 19 Gallery% 34 Achievement% 27 Wizard Run 0 Options --------- Layout 1 ASCII 0 Keyboard 1 Movement Numpad Keybinds 0 Fullscreen 1 Font 32/SmallcapsGlow Map View 77x35 Zoom Use 0% Tactical HUD 0 Map Filters NONE Filters NONE Steam 1 RUN: 05000c1a-4db0-4779-aafa-2c124dfd9b43